fUSD/lending_fUSD_20250417
["ID","MTS","AMOUNT","RATE_DAILY","PERIOD"]
[358301291,1744906248135,-331.3856024,0.00068493,120]
[358301292,1744906248145,-171.1143976,0.00068493,120]
[358301293,1744906248158,-328.8856024,0.00068493,120]
[358301294,1744906248167,-125.75961719,0.00068493,120]
[358301295,1744906248204,-374.24038281,0.00068493,120]
[358301296,1744906248214,-530.34922434,0.00068493,120]
[358301297,1744906248224,-500.0,0.00068493,120]
[358301298,1744906248234,-500.0,0.00068493,120]
[358301299,1744906248244,-500.0,0.00068493,120]
[358301300,1744906248254,-18.28887669,0.00068493,120]
[358301301,1744906248265,-481.71112331,0.00068493,120]
[358301302,1744906248275,-500.0,0.00068493,120]
[358301303,1744906248285,-522.72813005,0.00068493,120]
[358301304,1744906248294,-380.28581709,0.00068493,120]
[358301305,1744906248305,-130.85700779,0.00068493,120]
[358301306,1744906248315,-478.66040653,0.00068493,120]
[358301307,1744906248324,-168.2236999,0.00068493,120]
[358301308,1744906248334,-500.0,0.00068493,120]
[358301309,1744906248343,-500.0,0.00068493,120]
[358301310,1744906248352,-500.0,0.00068493,120]
[358301311,1744906248361,-100.06915152,0.00068493,120]
[358301312,1744907006015,250.0,0.00017,2]
[358301313,1744907007222,300.0,0.00019,2]
[358301314,1744907108682,99450.0,0.0002,2]
[358301315,1744907108710,100000.0,0.0002,2]
[358301316,1744907108754,100000.0,0.0002,2]
[358301317,1744907152167,-200.0,0.000199,2]
[358301318,1744907152190,-8.34561875,0.0002,2]
[358301319,1744907159093,-163.03641667,0.0002,2]
[358301321,1744907225082,-300.0,0.00019999,2]
[358301322,1744907225105,-168.94155685,0.00019999,2]
[358301323,1744907227115,-131.05844315,0.00019999,2]
[358301324,1744907227135,-850.0,0.00019999,2]
[358301325,1744907227158,-223.93729255,0.00019999,2]
[358301326,1744907227179,-247.84573897,0.00019999,2]
[358301327,1744907227205,-117.89044325,0.0002,2]
[358301328,1744907229128,-3030.24286709,0.0002,2]
[358301329,1744907237121,-188.96942198,0.00019999,2]
[358301330,1744907249087,-300.0,0.000195,7]
[358301331,1744907249113,-600.0,0.000196,7]
[358301332,1744907249139,-311.03057802,0.00019999,2]
[358301333,1744907249163,-500.0,0.00019999,2]
[358301334,1744907249187,-47662.61232588,0.0002,2]
[358301335,1744907254099,-900.0,0.000197,7]
[358301336,1744907254124,-126.89992666,0.000198,7]
[358301338,1744907285070,-1073.10007334,0.000198,7]
[358301339,1744907285108,-1500.0,0.000199,7]
[358301343,1744907346074,-273.8952518,0.000199,2]
[358301344,1744907346101,-1965.19363638,0.000199,2]
[358301345,1744907346122,-3355.51216682,0.000199,2]
[358301346,1744907346143,-1471.8506,0.000199,2]
[358301347,1744907346164,-500.0,0.00019999,2]
[358301348,1744907346186,-14929.900125,0.0002,2]
[358301349,1744907354076,-320.96030808,0.000199,2]
[358301350,1744907360078,-968.37076509,0.000199,2]
[358301351,1744907363111,-1749.41376051,0.000199,2]
[358301352,1744907363131,-2706.13717272,0.000199,2]
[358301353,1744907363151,-69.94206677,0.00019999,2]
[358301354,1744907373079,-487.22237226,0.00019899,2]
[358301355,1744907373266,-200.0,0.00019899,2]
[358301356,1744907373293,-418.76045214,0.000199,2]
[358301357,1744907373317,-230.05793323,0.00019999,2]
[358301358,1744907373340,-81.32915412,0.00019999,2]
[358301359,1744907423176,-169.15412678,0.000199,2]
[358301360,1744907423202,-159.99682634,0.00019973,2]
[358301361,1744907423228,-100.84904688,0.00019973,2]
[358301376,1744907431901,-256.68618437,0.000199,2]
[358301377,1744907431956,-255.23338252,0.000199,2]
[358301378,1744907431966,-81.29417979,0.00019973,2]
[358301379,1744907431976,-500.0,0.00019973,2]
[358301380,1744907431985,-500.0,0.00019973,2]
[358301381,1744907431995,-155.76380651,0.00019973,2]
[358301382,1744907432004,-508.36189712,0.00019973,2]
[358301383,1744907432018,-358.77789518,0.00019973,2]
[358301384,1744907432028,-500.0,0.00019973,2]
[358301385,1744907432037,-500.0,0.00019973,2]
[358301386,1744907432047,-355.82039354,0.00019973,2]
[358301387,1744907432057,-151.52023776,0.00019973,2]
[358301388,1744907432066,-9464.20960156,0.0001999,2]
[358301389,1744907432076,-593.97,0.0001999,2]
[358301390,1744907432085,-593.97,0.0001999,2]
[358301391,1744907432095,-256.19765916,0.0001999,2]
[358301392,1744907432104,-418.67084588,0.00019999,2]
[358301393,1744907432114,-300.0,0.00019999,2]
[358301394,1744907432122,-300.0,0.00019999,2]
[358301395,1744907432131,-850.0,0.00019999,2]
[358301396,1744907432141,-3564.41069188,0.0002,2]
[358301397,1744907432153,-2804.55764876,0.0002,2]
[358301398,1744907432165,-1231.85132041,0.0002,2]
[358301399,1744907432175,-428.59140228,0.0002,2]
[358301400,1744907432188,-383.12875825,0.0002,2]
[358301401,1744907432199,-540.49795588,0.0002,2]
[358301402,1744907432210,-5450.527,0.0002,2]
[358301459,1744907433623,-2500.0,0.0002,2]
[358301460,1744907437508,-2000.0,0.0002,2]
[358301462,1744907437982,-22820.87097642,0.0002,2]
[358301463,1744907437995,-423487.91990225,0.0002,2]
[358301464,1744907438008,-999.42965019,0.0002,2]
[358301535,1744907439200,-279.92587453,0.0002,2]
[358301536,1744907439212,-534.82997,0.0002,2]
[358301537,1744907439223,-3012.18350575,0.0002,2]
[358301538,1744907439234,-2079.24975989,0.0002,2]
[358301539,1744907439258,-1062.29555533,0.0002,2]
[358301540,1744907439281,-2218.22289668,0.000199,2]
[358301541,1744907439292,-18.78521452,0.000199,2]
[358301542,1744907439302,-1012.97065381,0.0002,2]
[358301543,1744907439313,-263.93547765,0.0002,2]
[358301550,1744907440177,-866.22286927,0.0002,2]
[358301551,1744907440286,-1000.0,0.0002,2]
[358301552,1744907440297,-713.97602152,0.0002,2]
[358301553,1744907440330,-370521.90979834,0.0002,2]
[358301554,1744907440341,-23643.44920508,0.0002,2]
[358301555,1744907440356,-1049.41419005,0.0002,2]
[358301556,1744907440368,-1685.77121904,0.0002,2]
[358301557,1744907440379,-1007.52312096,0.0002,2]
[358301558,1744907440389,-398.09970515,0.0002,2]
[358301559,1744907440400,-289.15000193,0.0002,2]
[358301560,1744907440461,-2705.56354044,0.0002,2]
[358301561,1744907440473,-641.555,0.0002,2]
[358301562,1744907440484,-3899.20536885,0.0002,2]
[358301563,1744907440495,-337.32290001,0.0002,2]
[358301564,1744907440507,-210126.02595452,0.0002,2]
[358301565,1744907440528,-34174.51135396,0.0002,2]
[358301566,1744907440544,-12657.86084069,0.0002,2]
[358301567,1744907440555,-1705.5582732,0.0002,2]
[358301576,1744907443608,-192.36064001,0.000199,3]
[358301577,1744907443618,-231.59517671,0.0002,2]
[358301578,1744907443629,-793.16298402,0.0002,2]
[358301579,1744907443641,-11740.16144261,0.0002,2]
[358301580,1744907443652,-2283357.28565846,0.0002,2]
[358301581,1744907443666,-80239.58559273,0.0002,2]
[358301582,1744907443678,-515.811067,0.0002,2]
[358301583,1744907443689,-641.99246739,0.0002,2]
[358301584,1744907443701,-565.99524606,0.0002,2]
[358301585,1744907443713,-5351.76263449,0.0002,2]
[358301586,1744907443725,-3268.2265522,0.0002,2]
[358301587,1744907443736,-602.39509999,0.0002,2]
[358301591,1744907443968,-5694.39325844,0.0002,2]
[358301592,1744907443979,-507.53028692,0.0002,2]
[358301593,1744907443990,-805.78275374,0.0002,2]
[358301594,1744907444002,-986.084731,0.0002,2]
[358301595,1744907444015,-3941.6972868,0.0002,2]
[358301602,1744907445937,-149403.43398719,0.0002,2]
[358301603,1744907445950,-12996.73955785,0.0002,2]
[358301604,1744907446243,-114.09999179,0.0002,2]
[358301605,1744907446342,-39292.67442012,0.0002,2]
[358301606,1744907446361,-647.41613075,0.0002,2]
[358301607,1744907446373,-2071.76251068,0.0002,2]
[358301608,1744907446384,-2000.0,0.0002,2]
[358301609,1744907446395,-980.88,0.0002,2]
[358301619,1744907448638,-540.0,0.0002,2]
[358301625,1744907818818,-781.01922287,0.000198,2]
[358301626,1744907818865,-300.0,0.00019899,2]
[358301627,1744907818906,-850.0,0.00019899,2]
[358301628,1744907818949,-269.2074,0.000199,2]
[358301629,1744907818990,-299.77337713,0.000199,2]
[358301630,1744907820121,-2049.39742287,0.000199,2]
[358301631,1744907820166,-450.60257713,0.000199,2]
[358301632,1744907821211,-117.03804455,0.000199,2]
[358301633,1744907821249,-2382.96195545,0.000199,2]
[358301634,1744907822338,-300.0,0.00019899,2]
[358301635,1744907822377,-2200.0,0.000199,2]
[358301636,1744907827452,-310.0,0.000199,2]
[358301637,1744907838951,221.49,0.000265,30]
[358301640,1744907963678,-709.636,0.000196,2]
[358301641,1744907963699,-151.526,0.000196,2]
[358301642,1744907963719,-500.0,0.00019873,2]
[358301643,1744907963740,-500.0,0.00019873,2]
[358301644,1744907963761,-300.0,0.00019899,2]
[358301645,1744907963785,-850.0,0.00019899,2]
[358301646,1744907963805,-2568.838,0.000199,2]
[358301648,1744908193849,-161.8221155,0.00019873,2]
[358301649,1744908193872,-300.0,0.00019899,2]
[358301650,1744908193893,-788.0,0.00019899,2]
[358301651,1744908193915,-3385.75574455,0.000199,2]
[358301652,1744908193936,-500.0,0.000199,2]
[358301653,1744908193957,-4864.42213995,0.000199,2]
[358301654,1744908195561,-1046.27036005,0.000199,2]
[358301655,1744908195588,-8953.72963995,0.000199,2]
[358301656,1744908198506,-10000.0,0.000199,2]
[358301657,1744908199569,-2407.64496005,0.000199,2]
[358301658,1744908199590,-7592.35503995,0.000199,2]
[358301659,1744908201623,-3410.01126005,0.000199,2]
[358301660,1744908201652,-1000.0,0.000199,2]
[358301661,1744908201680,-2791.01372737,0.000199,2]
[358301662,1744908201707,-270.78339316,0.000199,2]
[358301663,1744908201736,-567.64062165,0.000199,2]
[358301664,1744908201766,-1768.67427276,0.000199,2]
[358301665,1744908201794,-191.87672501,0.000199,2]
[358301666,1744908202737,-2308.12327499,0.000199,2]
[358301667,1744908202767,-172.47767749,0.000199,2]
[358301668,1744908202796,-250.0,0.00019925,2]
[358301669,1744908202823,-485.34368695,0.00019973,2]
[358301670,1744908202859,-630.79885609,0.00019973,2]
[358301671,1744908202886,-500.0,0.00019973,2]
[358301672,1744908202911,-500.6549931,0.00019973,2]
[358301673,1744908202939,-548.82592614,0.00019973,2]
[358301674,1744908202966,-500.0,0.00019973,2]
[358301675,1744908202991,-500.0,0.00019973,2]
[358301676,1744908203018,-3603.77558524,0.0002,2]
[358301677,1744908204287,-10000.0,0.0002,2]
[358301678,1744908206129,-10000.0,0.0002,2]
[358301679,1744908207643,-10000.0,0.0002,2]
[358301680,1744908209048,-10000.0,0.0002,2]
[358301681,1744908214611,153.0,0.00028,120]
[358301682,1744908346139,-300.0,0.00019899,2]
[358301683,1744908346167,-300.0,0.00019899,2]
[358301684,1744908346192,-500.0,0.000199,2]
[358301685,1744908346219,-2302.1953782,0.000199,2]
[358301688,1744908414091,-210.65467641,0.000199,2]
[358301689,1744908434228,-183.12035293,0.000199,2]
[358301690,1744908436148,-1860.17019246,0.000199,2]
[358301691,1744908436173,-1000.0,0.000199,2]
[358301692,1744908436194,-567.64062165,0.000199,2]
[358301693,1744908436215,-2500.0,0.000199,2]
[358301694,1744908436235,-227.6769,0.000199,2]
[358301695,1744908436256,-2511.91235466,0.000199,2]
[358301696,1744908436280,-172.47767749,0.000199,2]
[358301697,1744908436301,-831.28900281,0.000199,2]
[358301698,1744908436321,-224.6048,0.000199,2]
[358301699,1744908436344,-500.0,0.00019973,2]
[358301700,1744908436364,-500.0,0.00019973,2]
[358301701,1744908436386,-158.26548598,0.00019973,2]
[358301702,1744908436408,-11372.87916717,0.0002,2]
[358301703,1744908439082,-315.9481,0.000199,2]
[358301704,1744908439108,-1113.49251466,0.0002,2]
[358301705,1744908446085,-195.26149716,0.000198,2]
[358301706,1744908446109,-1650.03863479,0.000199,2]
[358301707,1744908446132,-151.67368183,0.00019973,2]
[358301708,1744908446157,-21.86454496,0.00019973,2]
[358301709,1744908451089,-11756.477,0.000199,2]
[358301710,1744908451111,-187.4248974,0.00019973,2]
[358301711,1744908451135,-16693.14534439,0.0002,2]
[358301712,1744908546100,-300.0,0.00019899,2]
[358301713,1744908546124,-552.0922,0.000199,2]
[358301714,1744908546151,-4534.3765,0.000199,2]
[358301715,1744908546174,-1000.0,0.000199,2]
[358301716,1744908546197,-2500.0,0.000199,2]
[358301717,1744908546220,-300.0,0.00019999,2]
[358301718,1744908546244,-665.47495867,0.00019999,2]
[358301719,1744908557085,-1592.36975171,0.00019999,2]
[358301720,1744908557108,-5163.82590429,0.0002,2]
[358301721,1744908561113,-17574.24750925,0.0002,2]
[358301731,1744908632160,-172.47767749,0.000199,2]
[358301732,1744908632171,-450.89204362,0.0001998,2]
[358301843,1744908638396,-608.77771316,0.0001998,2]
[358301844,1744908638407,-10077.36953971,0.0001999,2]
[358301845,1744908638419,-300.0,0.00019999,2]
[358301846,1744908638428,-17128.4663655,0.0002,2]
[358301847,1744908638440,-12399.90894833,0.0002,2]
[358301848,1744908638453,-623.09922119,0.0002,2]
[358301854,1744908640483,-283.6735,0.0002,2]
[358301855,1744908640496,-8868.54258935,0.0002,2]
[358301856,1744908640507,-1077.22622,0.0002,2]
[358301857,1744908640518,-372.49349999,0.0002,2]
[358301858,1744908640535,-428.40259422,0.0002,2]
[358301859,1744908640988,-1000.0,0.0002,2]
[358301878,1744908643707,-384.00213867,0.0002,2]
[358301879,1744908643778,-378.02170882,0.0002,2]
[358301880,1744908643840,-963.32624573,0.0002,2]
[358301887,1744908645299,-23.40607519,0.0002,2]
[358301888,1744908645311,-491174.41438081,0.0002,2]
[358301889,1744908645322,-379.89895842,0.0002,2]
[358301890,1744908645332,-200.0,0.0002,2]
[358301891,1744908645341,-259.5456271,0.0002,2]
[358301892,1744908645350,-250.0,0.0002,2]
[358301893,1744908645359,-250.0,0.00020073,2]
[358301894,1744908645369,-150.0,0.00020164,2]
[358301895,1744908645378,-200.0,0.000202,2]
[358301896,1744908645386,-200.0,0.00020402,2]
[358301897,1744908645395,-200.0,0.00020606,2]
[358301898,1744908645405,-200.0,0.00020812,2]
[358301899,1744908645415,-350.0,0.00021,2]
[358301900,1744908645426,-420.0,0.00021777,2]
[358301901,1744908645435,-419.0,0.00021881,2]
[358301902,1744908645445,-150.0,0.00021917,2]
[358301903,1744908645454,-250.0,0.00022,2]
[358301904,1744908645466,-400.0,0.00023,2]
[358301905,1744908645476,-150.0,0.00023287,2]
[358301906,1744908645485,-587.0,0.00023712,2]
[358301907,1744908645496,-150.0,0.00024657,2]
[358301908,1744908645505,-250.0,0.00024817,2]
[358301909,1744908645516,-450.0,0.00025,2]
[358301910,1744908645526,-816.0,0.0002582,2]
[358301911,1744908645536,-150.95,0.00026027,2]
[358301912,1744908645545,-2511.91235462,0.00026567,2]
[358301913,1744908645555,-1650.03863474,0.00026567,2]
[358301914,1744908645564,-2000.0,0.00027397,2]
[358301915,1744908645574,-2000.0,0.00027397,2]
[358301916,1744908645583,-2000.0,0.00027397,2]
[358301917,1744908645593,-2000.0,0.00027397,2]
[358301918,1744908645602,-2000.0,0.00027397,2]
[358301919,1744908645612,-1471.57198507,0.00027397,2]
[358301920,1744908645621,-500.0,0.000277,30]
[358301921,1744908645631,-235.0,0.00028,2]
[358301922,1744908645641,-511.91956684,0.00030357,2]
[358301923,1744908645650,-497.05015541,0.0003045,5]
[358301924,1744908645748,-6810.57317673,0.0003133,2]
[358301925,1744908645760,-6013.54,0.00031426,10]
[358301926,1744908645770,-248.74,0.00031554,2]
[358301927,1744908645779,-526.56,0.00032268,2]
[358301928,1744908645788,-1813.8,0.00032446,2]
[358301929,1744908645798,-164.36,0.00032499,2]
[358301930,1744908645808,-166.66,0.0003254,2]
[358301931,1744908645817,-200.0,0.00033094,2]
[358301932,1744908645827,-185.47,0.00033211,2]
[358301933,1744908645837,-2511.91235462,0.00033233,2]
[358301934,1744908645846,-1650.03863474,0.00033233,2]
[358301935,1744908645856,-200.0,0.00033238,2]
[358301936,1744908645865,-23900.0,0.00033475,2]
[358301937,1744908645874,-240.55,0.00033495,2]
[358301938,1744908645884,-166.66,0.00033615,2]
[358301939,1744908645893,-248.74,0.00033818,2]
[358301940,1744908645902,-1750.65,0.00033928,2]
[358301941,1744908645911,-156.31,0.00034126,30]
[358301942,1744908645920,-150.0,0.00034548,10]
[358301943,1744908645930,-166.66,0.00034689,2]
[358301944,1744908645939,-1563.0,0.00035,90]
[358301945,1744908645949,-166.66,0.00035763,2]
[358301946,1744908645959,-248.74,0.00036082,2]
[358301947,1744908645968,-166.66,0.00036837,2]
[358301948,1744908645978,-166.66,0.00037911,2]
[358301949,1744908645987,-248.74,0.00038346,2]
[358301950,1744908645996,-17109.84979897,0.0003923,2]
[358301951,1744908646005,-2511.91235462,0.000399,15]
[358301952,1744908646015,-1650.03863474,0.000399,15]
[358301953,1744908646024,-248.74,0.0004061,2]
[358301954,1744908646034,-207.4,0.00040733,2]
[358301955,1744908646043,-511.91956684,0.00040813,2]
[358301956,1744908646052,-173.0,0.00041,14]
[358301957,1744908646062,-214.36449667,0.00041095,120]
[358301958,1744908646071,-1000.0,0.00041095,120]
[358301959,1744908646081,-215.0738,0.00042102,2]
[358301960,1744908646091,-709.637,0.000422,63]
[358301961,1744908646102,-151.527,0.000422,63]
[358301962,1744908646113,-248.74,0.00042874,2]
[358301963,1744908646124,-223.0315306,0.00043471,2]
[358301964,1744908646135,-1106.8652,0.00043888,30]
[358301965,1744908646144,-231.28369723,0.0004484,2]
[358301966,1744908646154,-400.0,0.000449,16]
[358301967,1744908646163,-584.0,0.00045,7]
[358301968,1744908646172,-1418.0,0.00045,120]
[358301969,1744908646183,-275478.06088702,0.00045,30]
[358301970,1744908646192,-150.0,0.00045,120]
[358301971,1744908646202,-169.44407179,0.00045038,20]
[358301972,1744908646211,-248.74,0.00045137,2]
[358301973,1744908646221,-150.0,0.00045589,10]
[358301974,1744908646230,-239.84119403,0.00046209,2]
[358301975,1744908646249,-2511.91235462,0.00046567,15]
[358301976,1744908646259,-1650.03863474,0.00046567,15]
[358301977,1744908646269,-248.74,0.00047401,2]
[358301978,1744908646279,-248.71531821,0.00047578,2]
[358301979,1744908646289,-1422.27874734,0.00048838,2]
[358301980,1744908646299,-257.91778498,0.00048947,2]
[358301981,1744908646308,-2920.0,0.00049,120]
[358301982,1744908646318,-248.74,0.00049665,2]
[358301983,1744908646328,-150.0,0.0005,120]
[358301984,1744908646339,-150.0,0.0005,120]
[358301985,1744908646349,-11553.45995592,0.0005,120]
[358301986,1744908646359,-267.46074303,0.00050316,2]
[358301987,1744908646369,-511.91956684,0.0005127,43]
[358301988,1744908646379,-372.9626507,0.00051605,2]
[358301989,1744908646388,-277.35679052,0.00051685,2]
[358301990,1744908646399,-248.74,0.00051929,2]
[358301991,1744908646412,-150.0,0.00052,120]
[358301992,1744908646422,-151.0,0.00052,120]
[358301993,1744908646432,-151.0,0.00052,120]
[358301994,1744908646442,-153.53,0.000523,51]
[358301995,1744908646452,-153.53,0.000523,51]
[358301996,1744908646461,-1035.04884238,0.00052596,24]
[358301997,1744908646471,-287.61899177,0.00053054,2]
[358301998,1744908646481,-1494.55598841,0.00053223,4]
[358301999,1744908646491,-2511.91235462,0.00053233,15]
[358302000,1744908646501,-1650.03863474,0.00053233,15]
[358302001,1744908646510,-1000.78162318,0.00053591,120]
[358302002,1744908646520,-504.77160352,0.00053899,31]
[358302003,1744908646529,-13451.0038957,0.0005399,4]
[358302004,1744908646538,-156.75610479,0.00053999,120]
[358302005,1744908646548,-173.49201728,0.00053999,120]
[358302006,1744908646558,-500.0,0.00053999,120]
[358302007,1744908646568,-500.0,0.00053999,120]
[358302008,1744908646577,-233.94914363,0.00053999,120]
[358302009,1744908646586,-500.0,0.00053999,120]
[358302010,1744908646595,-150.0,0.00054,120]
[358302011,1744908646605,-150.0,0.00054,120]
[358302012,1744908646614,-87006.15677241,0.00054,5]
[358302013,1744908646623,-248.74,0.00054193,2]
[358302014,1744908646633,-151.0,0.00054384,120]
[358302015,1744908646643,-298.26089446,0.00054423,2]
[358302016,1744908646653,-584.88525593,0.00054651,2]
[358302017,1744908646663,-1494.55598841,0.00054785,4]
[358302018,1744908646673,-400.0,0.00054795,2]
[358302019,1744908646682,-1498.41698936,0.000549,120]
[358302020,1744908646692,-1498.41698936,0.000549,120]
[358302021,1744908646701,-309.29654756,0.00055792,2]
[358302022,1744908646711,-150.0,0.00056,120]
[358302023,1744908646720,-150.0,0.00056,120]
[358302024,1744908646736,-248.74,0.00056457,2]
[358302025,1744908646751,-1494.55598841,0.00056526,4]
[358302026,1744908646767,-1923.16,0.00056536,2]
[358302027,1744908646782,-500.0,0.00056536,2]
[358302028,1744908646794,-1000.0,0.00056536,120]
[358302029,1744908646807,-390.99,0.00056536,2]
[358302030,1744908646820,-205.02,0.00056536,30]
[358302031,1744908646833,-1705.55,0.00056536,30]
[358302032,1744908646845,-250.0,0.00056536,120]
[358302033,1744908646859,-889.45,0.00056536,120]
[358302034,1744908646872,-151.0,0.0005674,120]
[358302035,1744908646885,-151.0,0.00056767,120]
[358302036,1744908646899,-156.31,0.00056948,120]
[358302037,1744908646910,-320.74051982,0.00057161,2]
[358302038,1744908646920,-176.04,0.00057669,120]
[358302039,1744908646932,-203.0,0.0005796,104]
[358302040,1744908646946,-150.0,0.00058,120]
[358302041,1744908646959,-150.0,0.00058,120]
[358302042,1744908646971,-332.60791905,0.0005853,2]
[358302043,1744908646984,-248.74,0.00058721,2]
[358302044,1744908646997,-164.59,0.00059102,2]
[358302045,1744908647010,-151.0,0.00059151,120]
[358302046,1744908647023,-152.97415244,0.0005989,120]
[358302047,1744908647036,-1494.55598841,0.0005989,5]
[358302048,1744908647047,-344.91441206,0.00059899,2]
[358302049,1744908647061,-2511.91235462,0.000599,15]
[358302050,1744908647074,-1650.03863474,0.000599,15]
[358302051,1744908647088,-150.0,0.0006,120]
[358302052,1744908647101,-150.0,0.0006,120]
[358302053,1744908647115,-598.86914564,0.0006,120]
[358302054,1744908647127,-504.77160348,0.00060899,40]
[358302055,1744908647140,-248.74,0.00060985,2]
[358302056,1744908647153,-357.6762453,0.00061268,2]
[358302057,1744908647168,-151.0,0.00061479,120]
[358302058,1744908647181,-151.0,0.00061534,120]
[358302059,1744908647193,-511.91956684,0.00061726,86]
[358302060,1744908647205,-299.0,0.00062,120]
[358302061,1744908647216,-150.0,0.00062,120]
[358302062,1744908647228,-150.0,0.00062,120]
[358302063,1744908647238,-227.06,0.00062015,2]
[358302064,1744908647252,-370.91026638,0.00062637,2]
[358302065,1744908647266,-160.65,0.00062662,30]
[358302067,1744908647277,-215.2143055,0.00062826,120]
[358302069,1744908647288,-248.74,0.00063249,2]
[358302071,1744908647298,-2499.999999,0.0006348,2]
[358302072,1744908647308,-321.3,0.00063544,30]
[358302073,1744908647320,-300.0,0.00063544,30]
[358302074,1744908647333,-500.0,0.00063561,120]
[358302075,1744908647347,-1494.55598841,0.00063593,5]
[358302076,1744908647358,-1000.0,0.00063603,120]
[358302077,1744908647369,-979.51,0.00063835,120]
[358302078,1744908647380,-151.0,0.00063918,120]
[358302079,1744908647392,-299.0,0.00064,120]
[358302080,1744908647405,-150.0,0.00064,120]
[358302081,1744908647418,-150.0,0.00064,120]
[358302082,1744908647431,-384.63394623,0.00064006,2]
[358302083,1744908647444,-2000.0,0.00064742,4]
[358302084,1744908647455,-151.526,0.000648,120]
[358302085,1744908647469,-709.637,0.000648,120]
[358302086,1744908647484,-1498.41698936,0.0006498,120]
[358302087,1744908647497,-1498.41698936,0.0006498,120]
[358302088,1744908647508,-1000.0,0.00065,120]
[358302089,1744908647519,-600.0,0.00065375,2]
[358302090,1744908647531,-1494.55598841,0.0006549,5]
[358302091,1744908647546,-2147.66434012,0.000655,120]
[358302092,1744908647559,-248.74,0.00065512,2]
[358302093,1744908647571,-299.0,0.00066,120]
[358302094,1744908647583,-150.0,0.00066,120]
[358302095,1744908647596,-150.0,0.00066,120]
[358302096,1744908647608,-151.0,0.00066219,120]
[358302097,1744908647621,-151.0,0.00066301,120]
[358302098,1744908647632,-1000.0,0.00066395,60]
[358302099,1744908647644,-150.0,0.00066448,60]
[358302100,1744908647655,-2511.91235462,0.00066567,15]
[358302101,1744908647668,-1650.03863474,0.00066567,15]
[358302102,1744908647679,-150.0,0.00066624,60]
[358302103,1744908647691,-150.0,0.00066748,60]
[358302104,1744908647702,-1000.0,0.00066878,60]
[358302105,1744908647714,-150.0,0.00066892,60]
[358302106,1744908647726,-1494.55598841,0.00066992,5]
[358302107,1744908647737,-500.0,0.00067,120]
[358302108,1744908647748,-150.0,0.00067002,60]
[358302109,1744908647761,-150.0,0.00067021,60]
[358302110,1744908647773,-1000.0,0.00067056,60]
[358302111,1744908647784,-150.0,0.0006707,60]
[358302112,1744908647796,-150.0,0.00067088,60]
[358302113,1744908647807,-150.0,0.00067097,60]
[358302114,1744908647818,-150.0,0.00067138,60]
[358302115,1744908647829,-150.0,0.00067139,60]
[358302116,1744908647841,-150.0,0.00067144,60]
[358302117,1744908647852,-150.0,0.00067144,60]
[358302118,1744908647864,-216.82192365,0.00067152,60]
[358302119,1744908647875,-150.0,0.00067161,60]
[358302120,1744908647887,-150.0,0.00067198,60]
[358302121,1744908647899,-150.0,0.00067209,60]
[358302122,1744908647912,-150.0,0.00067228,60]
[358302123,1744908647925,-150.0,0.00067237,60]
[358302124,1744908647936,-150.0,0.00067241,60]
[358302125,1744908647947,-150.0,0.00067245,60]
[358302126,1744908647959,-1034.73385202,0.00067246,60]
[358302127,1744908648103,-150.0,0.00067248,60]
[358302128,1744908648113,-150.0,0.00067262,60]
[358302129,1744908648123,-300.0,0.00067284,60]